Cogmind - Beta 13 @@@ ROGUE MODE // 2024.05.02 @ 17:44:07 Player: orthostice Result: Self-destructed Performance ------------- Evolutions (1) 500 Regions Visited (3) 600 Robots Destroyed (36) 180 Value Destroyed (760) 760 Prototype IDs (0) 0 Alien Tech Used (0) 0 Bonus (0) 0 TOTAL SCORE: 2040 Bonus ------- None Cogmind --------- Core Integrity 278/400 Matter 295/300 Energy 265/265 System Corruption 0% Temperature Cool (6) Movement Core (400) Ox7 Location -9/Materials Parts ------- > --- POWER (1) -------- Improved Ion Engine > --- PROPULSION (4) --- (None) > --- UTILITY (2) ------ Small Storage Unit Medium Storage Unit > --- WEAPON (2) ------- (None) > --- INVENTORY (10) --- Ion Engine Light Treads Structural Scanner Assault Rifle Assault Rifle Heavy Assault Rifle Grenade Launcher Grenade Launcher Peak State ------------ > --- POWER ------------ Ion Engine > --- PROPULSION ------- Light Treads Light Treads > --- UTILITY ---------- Small Storage Unit Medium Storage Unit > --- WEAPON ----------- Assault Rifle Assault Rifle > --- INVENTORY -------- Aluminum Leg Aluminum Leg Aluminum Leg Structural Scanner Assault Rifle Assault Rifle Light Assault Rifle Light Assault Rifle Grenade Launcher Grenade Launcher [Rating: 8] Favorites ----------- Power Ion Engine Engine Ion Engine Propulsion Light Treads Treads Light Treads Leg Aluminum Leg Wheel Compact Wheel Utility Small Storage Unit Device Structural Scanner Storage Small Storage Unit Weapon Assault Rifle Energy Gun Medium Laser Ballistic Gun Assault Rifle Launcher Grenade Launcher Build | -11 -10 -10 -9 ------- Run | Yrd Mat Min Mat Slots Evolved 2 | . . . 2 Power . | . . . . Propulsion 2 | . . . 2 Utility . | . . . . Weapon . | . . . . Parts Attached 24 | 8 10 2 4 Power 3 | 1 1 . 1 Engine 3 | 1 1 . 1 Core . | . . . . Reactor . | . . . . Propulsion 7 | 3 1 2 1 Treads 3 | 2 1 . . Leg 3 | . . 2 1 Wheel 1 | 1 . . . Hover . | . . . . Flight . | . . . . Utility 3 | 1 2 . . Device 1 | . 1 . . Storage 2 | 1 1 . . Processor . | . . . . Hackware . | . . . . Protection . | . . . . Artifact . | . . . . Weapon 11 | 3 6 . 2 Energy Gun 1 | 1 . . . Energy Cannon . | . . . . Ballistic Gun 8 | 2 4 . 2 Ballistic Cannon . | . . . . Launcher 2 | . 2 . . Special Weapon . | . . . . Impact Weapon . | . . . . Slashing Weapon . | . . . . Piercing Weapon . | . . . . Special Melee Weapon . | . . . . Unidentified Prototypes . | . . . . Parts Lost 8 | . . 1 7 Power . | . . . . Propulsion 4 | . . 1 3 Utility . | . . . . Weapon 4 | . . . 4 Highest Loss Streak 7 | . . 1 7 To Critical Strikes . | . . . . Average Slot Usage (%) 93 | . 94 98 78 Engine 13 | . 14 14 11 Treads 22 | . 27 12 . Leg 5 | . . 14 25 Device 5 | . 6 . . Storage 18 | . 15 28 22 Ballistic Gun 27 | . 27 28 20 Naked Turns . | . . . . Heaviest Build 24 | 13 24 24 24 Greatest Support 40 | 40 40 40 30 Greatest Overweight (x) 7 | 3 . 1 7 Average Overweight (x) . | . . . . Largest Inventory Capacity 10 | 8 10 10 10 Average Capacity 8 | 7 8 10 10 Most Carried 10 | 8 10 10 8 Average Carried 7 | 4 7 9 7 Final Capacity 10 | 8 10 10 10 Final Carried 10 | 4 10 9 8 Class Distribution -------------------- 100% | Mutant Dominant Class ---------------- Mutant | -10/Materials Mutant | -10/Mines Mutant | -9/Materials Resources | -11 -10 -10 -9 ----------- Run | Yrd Mat Min Mat Matter Collected 905 | 246 452 37 170 Remotely . | . . . . Salvage Created 1083 | . 721 49 313 Parts 76 | . 54 4 18 Haulers Intercepted 1 | . 1 . . Recyclers Shooed . | . . . . Parts Field Recycled . | . . . . Retrieved Matter . | . . . . Parts Self-Destructed . | . . . . Prevented . | . . . . Kills | -11 -10 -10 -9 ------- Run | Yrd Mat Min Mat Combat Hostiles Destroyed 27 | . 15 3 9 Guns 24 | . 12 3 9 AOE 3 | . 3 . . Classes Destroyed 10 | . 9 . 1 Worker 2 | . 2 . . Builder 1 | . 1 . . Hauler 1 | . 1 . . Recycler 1 | . 1 . . Mechanic 1 | . 1 . . Operator 1 | . 1 . . Watcher 2 | . 2 . . Swarmer 13 | . 6 3 4 Grunt 12 | . 9 . 3 Sentry 2 | . . . 2 Best Kill Streak 7 | . 7 3 5 Combat Bots Only 5 | . 4 3 5 Max Kills in Single Turn 6 | . 6 1 2 Gunslinging 1 | . . . 1 Exploded 3 | . 3 . . Melee . | . . . . Uniques/NPCs Destroyed . | . . . . Combat | -11 -10 -10 -9 -------- Run | Yrd Mat Min Mat Hostile Shots Fired 190 | . 85 16 89 Missed 54 | . 25 6 23 Damage Taken 1436 | . 603 81 752 Core 246 | . 101 23 122 Absorbed by Shields . | . . . . Regen/Repaired (Parts) 115 | . 115 . . Core Remaining (%) 75 | 100 . 50 . Volleys Fired 111 | . 65 7 39 Largest 2 | . 2 2 2 Hottest 60 | . 60 40 40 Shots Fired 216 | . 130 14 72 Gun 214 | . 128 14 72 Cannon . | . . . . Launcher 2 | . 2 . . Special . | . . . . Kinetic 214 | . 128 14 72 Thermal . | . . . . Explosive 2 | . 2 . . Electromagnetic . | . . . . Robot Hit Streak 11 | . 11 7 10 Robot Miss Streak 6 | . 6 4 4 Penetration Max . | . . . . Secondary Targets 9 | . 5 2 2 Max Gunslinging Chain 1 | . 1 1 1 Shots Hit Robots 133 | . 75 8 50 Core Hits 62 | . 40 4 18 Critical Kills . | . . . . Critical Parts Destroyed . | . . . . Critical Strikes . | . . . . Melee Attacks . | . . . . Impact . | . . . . Slashing . | . . . . Piercing . | . . . . Sneak Attacks . | . . . . Combat Hostiles . | . . . . Follow-up Attacks . | . . . . Damage Inflicted 1739 | . 1071 92 576 Guns 1521 | . 855 92 574 Cannons . | . . . . Explosions 203 | . 203 . . Melee . | . . . . Ramming 15 | . 13 . 2 Kinetic 1521 | . 855 92 574 Thermal . | . . . . Explosive 203 | . 203 . . Electromagnetic . | . . . . Impact . | . . . . Slashing . | . . . . Piercing . | . . . . Highest Corruption . | . . . . Average Corruption . | . . . . Corruption Purged . | . . . . Corruption Blocked . | . . . . Overload Shots . | . . . . Overflow Damage . | . . . . Projectiles . | . . . . Explosions . | . . . . Melee . | . . . . Knockbacks . | . . . . Impact . | . . . . Kinetic . | . . . . Secondary . | . . . . Self-Inflicted Damage . | . . . . Shots . | . . . . Rammed 4 | . 3 . 1 Targets Rammed 5 | . 3 . 2 Kicked 1 | . . . 1 Crushed . | . . . . Highest Temperature 12 | . 12 . 10 Average Temperature 5 | . 6 . 4 Received Heat Transfer 504 | . 225 . 279 Siege Activations . | . . . . Robots Corrupted . | . . . . Combat Hostiles . | . . . . Parts Fried . | . . . . Impact Corruptions . | . . . . Robots Melted . | . . . . Combat Hostiles . | . . . . Parts Melted . | . . . . Heat Transferred . | . . . . Parts Sabotaged . | . . . . Parts Stolen . | . . . . Parts Stripped . | . . . . Power Chain Reactions . | . . . . Alert | -11 -10 -10 -9 ------- Run | Yrd Mat Min Mat Peak Influence 270 | . 241 168 270 Initial 93 | . . 93 65 Average 111 | . 107 137 175 Maximum Alert Level 1 | . 1 . 1 Low Security (%) 85 | 100 86 100 48 Level 1 14 | . 13 . 51 Level 2 . | . . . . Level 3 . | . . . . Level 4 . | . . . . Level 5 . | . . . . High Security . | . . . . Max Security . | . . . . Squads Dispatched 5 | . 3 . 2 Investigation 1 | . 1 . . Extermination . | . . . . Reinforcement 4 | . 2 . 2 Assault . | . . . . Garrison . | . . . . Intercept . | . . . . Searches Triggered . | . . . . Construction Impeded 1 | . . . 1 Haulers Reinforced . | . . . . Active Scanning Responses . | . . . . Cargo Convoy Interrupts . | . . . . Stealth | -11 -10 -10 -9 --------- Run | Yrd Mat Min Mat Distress Signals 4 | . 2 . 2 Communications Jammed . | . . . . Distress Signals . | . . . . Times Spotted 44 | . 26 4 14 Peak Tracking Total 10 | . 5 3 10 Tactical Retreats 3 | . 2 1 . Traps | -11 -10 -10 -9 ------- Run | Yrd Mat Min Mat Traps Triggered 1 | . 1 . . Indirectly . | . . . . Trap Hack Attempts . | . . . . Triggered . | . . . . Disarmed . | . . . . Reprogrammed . | . . . . Reused . | . . . . Traps Extracted . | . . . . Installed . | . . . . Triggered . | . . . . Machines | -11 -10 -10 -9 ---------- Run | Yrd Mat Min Mat Machines Disabled 3 | . 3 . . Max in Single Turn 2 | . 2 . . Machines Repaired . | . . . . Machines Dismantled . | . . . . Machines Sabotaged . | . . . . Overloaded Fab Kills . | . . . . Hacking | -11 -10 -10 -9 --------- Run | Yrd Mat Min Mat Machines Accessed 3 | . 3 . . Terminals 2 | . 2 . . Fabricators . | . . . . Repair Stations 1 | . 1 . . Recycling Units . | . . . . Scanalyzers . | . . . . Garrison Access . | . . . . Total Hacks 4 | . 4 . . Successful 2 | . 2 . . Failed 2 | . 2 . . Catastrophic . | . . . . Database Lockouts . | . . . . Manual . | . . . . Terminals 2 | . 2 . . Fabricators . | . . . . Repair Stations 2 | . 2 . . Recycling Units . | . . . . Scanalyzers . | . . . . Garrison Access . | . . . . Terminal Hacks . | . . . . Fabricator Hacks . | . . . . Repair Station Hacks 2 | . 2 . . Scan Component 1 | . 1 . . Repair 1 | . 1 . . Recycling Unit Hacks . | . . . . Scanalyzer . | . . . . Garrison Access Hacks . | . . . . Unauthorized Hacks . | . . . . Terminals . | . . . . Fabricators . | . . . . Repair Stations . | . . . . Recycling Units . | . . . . Scanalyzers . | . . . . Garrison Access . | . . . . Data Cores Recovered . | . . . . Used . | . . . . Hacking Detections . | . . . . Full Trace Events . | . . . . Feedback Events . | . . . . Feedback Blocked . | . . . . Robot Schematics Acquired . | . . . . Robots Built . | . . . . Authchips . | . . . . Time . | . . . . Total Robot Build Rating . | . . . . Part Schematics Acquired . | . . . . Parts Built . | . . . . Authchips . | . . . . Time . | . . . . Total Part Build Rating . | . . . . Parts Repaired 1 | . 1 . . Time 26 | . 26 . . Parts Recycled . | . . . . Recycled Matter . | . . . . Retrieved Matter . | . . . . Retrieved Components . | . . . . Parts Scanalyzed . | . . . . Part Schematics Acquired . | . . . . Parts Damaged . | . . . . Bothacking | -11 -10 -10 -9 ------------ Run | Yrd Mat Min Mat Used RIF Installer . | . . . . Robots Hacked . | . . . . Non-combat . | . . . . Combat . | . . . . Robot Hacks Applied . | . . . . Relay Couplers Released . | . . . . Fabnet Peak Effective % . | . . . . Robots Rewired . | . . . . Allies Hacked . | . . . . Hacks Repelled . | . . . . Allies | -11 -10 -10 -9 -------- Run | Yrd Mat Min Mat Total Allies . | . . . . Largest Group . | . . . . Highest-Rated Group . | . . . . Highest-Rated Ally . | . . . . Total Orders . | . . . . Ally Attacks . | . . . . Total Damage . | . . . . Kills . | . . . . Allies Corrupted . | . . . . Allies Melted . | . . . . Intel | -11 -10 -10 -9 ------- Run | Yrd Mat Min Mat Robot Analysis Total . | . . . . Derelict Logs Recovered . | . . . . Drone Launches . | . . . . Drone Recoveries . | . . . . Exploration | -11 -10 -10 -9 ------------- Run | Yrd Mat Min Mat Turns Passed 1724 | 119 1176 252 177 Spaces Moved 793 | 69 558 128 38 Core 20 | 16 . . 4 Treads 660 | 44 558 58 . Legs 104 | . . 70 34 Wheels 9 | 9 . . . Hover . | . . . . Flight . | . . . . Fastest Speed 50 | 50 160 160 120 Average Speed 160 | 138 160 177 160 Slowest Speed 400 | 200 160 240 400 Overloaded Moves . | . . . . Propulsion Burnouts . | . . . . Robots Hopped . | . . . . Cave-ins Triggered . | . . . . Exploration Rate (%) 31 | 5 68 46 6 Regions Visited 3 Branch Regions 1 Pre-discovered Areas . | . . . . Known Exits Taken . | . . . . Unknown Exits Taken 3 | 1 1 1 . Scrap Searched . | . . . . Spaces Dug . | . . . . Terrain Destroyed 4 | . 4 . . Melee . | . . . . Projectile . | . . . . AOE 4 | . 4 . . Terrain Rammed . | . . . . Walls Destroyed . | . . . . Machines Disabled . | . . . . Actions | -11 -10 -10 -9 --------- Run | Yrd Mat Min Mat Total 1034 | 92 719 139 84 Wait 68 | 5 60 3 . Move 790 | 68 557 127 38 Hop . | . . . . Pick Up 24 | 8 15 . 1 Fast Attach 5 | 4 1 . . Attach 9 | 3 2 1 3 Detach 1 | 1 . . . Swap 10 | 1 7 1 1 Drop 11 | 2 9 . . Fire 111 | . 65 7 39 Melee . | . . . . Ram 1 | . . . 1 Kick 1 | . . . 1 Crush 3 | . 3 . . Escape Stasis . | . . . . Rewire . | . . . . Trap . | . . . . Miscellaneous . | . . . . Route ------- -11/Scrapyard -10/Materials (discovered 4 exits: [*Mat x2] / [*Min] / [*Sub]) -10/Mines -9/Materials History --------- Turn | Location | Event 6 | -11/Scrapyard | Discovered new exit (range 16) 120 | -11/Scrapyard | Entered Materials 311 | -10/Materials | Build established: Mutant 464 | -10/Materials | Discovered new exit (range 15) 799 | -10/Materials | Discovered new exit (range 12) 876 | -10/Materials | Repaired Lgt. Treads 1180 | -10/Materials | Discovered new exit (range 15) 1256 | -10/Materials | Discovered new exit (range 9) 1296 | -10/Materials | Entered Mines 1523 | -10/Mines | Discovered new exit (range 7) 1548 | -10/Mines | Entered Materials 1548 | -9/Materials | Evolved 2 slots: Propulsion x2 1725 | -9/Materials | Self-destructed Last Messages --------------- Assault Rifle destroyed. S-10 Pest destroyed. T-07 Excavator is excavating. Aluminum Leg destroyed. T-07 Excavator is excavating. U-05 Engineer lays Concrete. ALERT: Construction progress impeded, dispatching reinforcements to local area. T-07 Excavator is excavating. Aluminum Leg destroyed. Y-45 Defender destroyed. Acquired 170 matter. Acquired Hvy. Assault Rifle. Aluminum Leg destroyed. K-01 Serf collects debris. Slammed into O-16 Technician. R-06 Scavenger collects Heat Sink. Lgt. Assault Rifle destroyed. R-06 Scavenger collects Lgt. Assault Rifle. Lgt. Assault Rifle destroyed. Map ----- +----------------------------------------------------+ | ?????????????????????????????????????????????????? | | ?????????????????????????????????????????????????? | | ?????????????????????????????????????????????????? | | ?????????????????????????????????????????????????? | | ?????????????????????????????????????????????????? | | ?????????????????????????????????????????????????? | | ?????????????????????????????????????????????????? | | ?????????????????????????????????????????????????? | | ?????????????????????????????????????????????????? | | ?????????????????????????????????????????????????? | | ?????????????????????????????????????????????????? | | ?????????????????????????????????????????????????? | | ?????????????????????????????????????????????????? | | ?????????????????????????????????????????????????? | | ?????????????????????????????????????????????????? | | ?????????????????????????????????????????????????? | | ?????????????????????????????????????????????????? | | ?????????????????????????????????????????????????? | | ????????????????????????###+######???????????????? | | ????????????????????????# ???????????????? | | ????????????????????????# """????????????????? | | ????????????????##??????# """ ???????????????? | | ????????????????# ##????# """????????????????? | | ????????????????#[= ????# = """????????????????? | | ???????######+###%![????# """ #??????????????? | | ???????# [##[######@"T" #??????????????? | | ???????# %%=[%! gg #?????????????? | | ???????+ % !!=################??????????????? | | ???????# #######=#?????????????????????????????? | | ?????????????????#=#?????????????????????????????? | | ?????????????????# #?????????????????????????????? | | ?????????????????# #?????????????????????????????? | | ?????????????????# #?????????????????????????????? | | ?????????????????# #?????????????????????????????? | | ?????????????????# #?????????????????????????????? | | ?????????????????# #?????????????????????????????? | | ?????????????????# #?????????????????????????????? | | ??????????######## #?????????????????????????????? | | ???! #?????????????????????????????? | | ????????# ##### #?????????????????????????????? | | ??????????? ????# #?????????????????????????????? | | ???????????# ????# #?????????????????????????????? | | ???????????# ??###+##????????????????????????????? | | ???????????# ### #????????????????????????????? | | ???????????# # ""#????????????????????????????? | | ???????????+ # T"#????????????????????????????? | | ???????????# # ""#????????????????????????????? | | ???????????# + #????????????????????????????? | | ???????????# # #????????????????????????????? | | ???????????# # #????????????????????????????? | +----------------------------------------------------+ Best States ------------- Heat Dissipation 28 Energy Generation 12 Energy Capacity 265 Matter Stores 300 Matter Capacity 300 Sight Range 16 Terrain Scan Density 10 Evasion (%) 55 Recoil Reduction 2 Item Schematics ----------------- None Robot Schematics ------------------ None Fabricated ------------ Nothing Alien Tech Used ----------------- None Achievements -------------- None Challenges ------------ None Game ------ Seed WeaponsAssaultProjector Manual? 0 Play Time 00:15:50 Cumulative 9.1 hours Start 2024.05.02 @ 17:25:13 End 2024.05.02 @ 17:44:07 Sessions 1 Manual Loads 0 Difficulty Rogue Special Mode None Game No. 22 Rogue 22 Adventurer 0 Explorer 0 Win Type - Total 0 Types 0/0/0/0/0/0/0/0/0 Lore% 13 Gallery% 12 Achievement% 12 Wizard Run 0 Options --------- Layout 1 ASCII 0 Keyboard 0 Movement Vi Keybinds 0 Fullscreen 2 Font 32/SmallcapsGlow Map View 50x35 Zoom Use 0% Tactical HUD 0 Map Filters NONE Filters NONE Steam 1 RUN: ae46e9ad-f56b-4861-b0fa-a9269bb1ef2a